Cogmind - Beta 13 @@@ ROGUE MODE // 2024.04.24 @ 21:24:19 Player: skelll Result: Destroyed by L-31 Rogue with Katana Performance ------------- Evolutions (1) 500 Regions Visited (3) 600 Robots Destroyed (14) 70 Value Destroyed (487) 487 Prototype IDs (0) 0 Alien Tech Used (0) 0 Bonus (68) 68 TOTAL SCORE: 1725 Bonus ------- Follower Combat Kills 68 Cogmind --------- Core Integrity 0/400 Matter 300/300 Energy 68/100 System Corruption 6% Temperature Danger (421) Movement Core (50) Location -9/Storage Parts ------- > --- POWER (1) -------- (None) > --- PROPULSION (2) --- (None) > --- UTILITY (3) ------ (None) > --- WEAPON (3) ------- (None) > --- INVENTORY (5) ---- Ion Engine Light Ion Engine Aluminum Leg Aluminum Leg Drone Bay (2/2) Peak State ------------ > --- POWER ------------ Ion Engine > --- PROPULSION ------- Compact Wheel Compact Wheel > --- UTILITY ---------- Small Storage Unit Targeting Computer Drone Bay > --- WEAPON ----------- EM Shotgun Beam Rifle Heavy Assault Rifle > --- INVENTORY -------- Ion Engine Light Ion Engine Aluminum Leg Aluminum Leg Large Matter Pod Hardened Light Armor Plating EM Pulse Gun Particle Cannon [Rating: 17] Favorites ----------- Power Ion Engine Engine Ion Engine Propulsion Compact Wheel Wheel Compact Wheel Utility Small Storage Unit Device Seismic Detector Storage Small Storage Unit Processor Targeting Computer Weapon Assault Rifle Energy Gun EM Pulse Gun Energy Cannon Particle Cannon Ballistic Gun Assault Rifle Build | -11 -10 -9 -9 ------- Run | Yrd Mat Mat Sto Slots Evolved 2 | . . 2 . Power . | . . . . Propulsion . | . . . . Utility 1 | . . 1 . Weapon 1 | . . 1 . Parts Attached 24 | 6 5 6 7 Power 3 | 1 1 1 . Engine 3 | 1 1 1 . Core . | . . . . Reactor . | . . . . Propulsion 5 | 2 2 . 1 Treads . | . . . . Leg . | . . . . Wheel 5 | 2 2 . 1 Hover . | . . . . Flight . | . . . . Utility 6 | 1 2 1 2 Device 3 | . 2 . 1 Storage 2 | 1 . . 1 Processor 1 | . . 1 . Hackware . | . . . . Protection . | . . . . Artifact . | . . . . Weapon 10 | 2 . 4 4 Energy Gun 6 | 1 . 3 2 Energy Cannon 1 | . . . 1 Ballistic Gun 3 | 1 . 1 1 Ballistic Cannon . | . . . . Launcher . | . . . . Special Weapon . | . . . . Impact Weapon . | . . . . Slashing Weapon . | . . . . Piercing Weapon . | . . . . Special Melee Weapon . | . . . . Unidentified Prototypes . | . . . . Parts Lost 11 | . . . 11 Power 1 | . . . 1 Propulsion 2 | . . . 2 Utility 3 | . . . 3 Weapon 5 | . . . 5 Highest Loss Streak 11 | . . . 11 To Critical Strikes . | . . . . Average Slot Usage (%) 95 | . 99 95 87 Engine 12 | . 14 11 9 Wheel 24 | . 28 22 18 Device 11 | . 13 11 9 Storage 13 | . 14 11 14 Processor 4 | . . 11 6 Energy Gun 16 | . 14 17 18 Ballistic Gun 12 | . 14 11 9 Naked Turns 5 | . . . 5 Heaviest Build 28 | 14 15 19 28 Greatest Support 32 | 26 32 32 32 Greatest Overweight (x) 2 | 2 . . . Average Overweight (x) . | . . . . Largest Inventory Capacity 8 | 8 8 8 8 Average Capacity 7 | 7 8 8 7 Most Carried 8 | 4 8 8 8 Average Carried 6 | 2 6 7 7 Final Capacity 8 | 8 8 8 5 Final Carried 8 | 4 8 8 5 Class Distribution -------------------- 66% | Mutant 33% | Gunner Dominant Class ---------------- Mutant | -10/Materials Gunner | -9/Materials Gunner | -9/Storage Resources | -11 -10 -9 -9 ----------- Run | Yrd Mat Mat Sto Matter Collected 634 | 217 290 32 95 Remotely . | . . . . Salvage Created 603 | . 338 110 155 Parts 35 | . 16 10 9 Haulers Intercepted . | . . . . Recyclers Shooed . | . . . . Parts Field Recycled . | . . . . Retrieved Matter . | . . . . Parts Self-Destructed . | . . . . Prevented . | . . . . Kills | -11 -10 -9 -9 ------- Run | Yrd Mat Mat Sto Combat Hostiles Destroyed 12 | . 7 2 3 Guns 11 | . 6 2 3 AOE 1 | . 1 . . Classes Destroyed 4 | . 3 1 . Builder 1 | . 1 . . Watcher 1 | . 1 . . Grunt 10 | . 7 1 2 Sentry 2 | . . 1 1 Best Kill Streak 3 | . 3 1 2 Combat Bots Only 2 | . 2 1 2 Max Kills in Single Turn 2 | . 2 1 1 Gunslinging . | . . . . Exploded 1 | . 1 . . Melee . | . . . . Uniques/NPCs Destroyed . | . . . . Combat | -11 -10 -9 -9 -------- Run | Yrd Mat Mat Sto Hostile Shots Fired 124 | . 23 16 85 Missed 20 | . 10 2 8 Damage Taken 1562 | . 248 172 1142 Core 489 | . 58 49 382 Absorbed by Shields 10 | . . . 10 Core Remaining (%) 88 | 100 76 . . Volleys Fired 39 | . 19 7 13 Largest 3 | . 2 3 3 Hottest 124 | . 60 121 124 Shots Fired 82 | . 38 17 27 Gun 80 | . 38 17 25 Cannon 2 | . . . 2 Launcher . | . . . . Special . | . . . . Kinetic 35 | . 19 7 9 Thermal 13 | . . 3 10 Explosive . | . . . . Electromagnetic 34 | . 19 7 8 Robot Hit Streak 21 | . 13 21 12 Robot Miss Streak 4 | . 2 4 2 Penetration Max . | . . . . Secondary Targets 3 | . 1 . 2 Max Gunslinging Chain 1 | . 1 . 1 Shots Hit Robots 61 | . 28 12 21 Core Hits 27 | . 15 4 8 Critical Kills . | . . . . Critical Parts Destroyed . | . . . . Critical Strikes . | . . . . Melee Attacks . | . . . . Impact . | . . . . Slashing . | . . . . Piercing . | . . . . Sneak Attacks . | . . . . Combat Hostiles . | . . . . Follow-up Attacks . | . . . . Damage Inflicted 1048 | . 515 142 391 Guns 887 | . 395 142 350 Cannons 41 | . . . 41 Explosions 120 | . 120 . . Melee . | . . . . Ramming . | . . . . Kinetic 351 | . 203 44 104 Thermal 304 | . 120 28 156 Explosive . | . . . . Electromagnetic 393 | . 192 70 131 Impact . | . . . . Slashing . | . . . . Piercing . | . . . . Highest Corruption 6 | . . . 6 Average Corruption 4 | . . . 4 Corruption Purged . | . . . . Corruption Blocked . | . . . . Overload Shots . | . . . . Overflow Damage . | . . . . Projectiles . | . . . . Explosions . | . . . . Melee . | . . . . Knockbacks . | . . . . Impact . | . . . . Kinetic . | . . . . Secondary . | . . . . Self-Inflicted Damage 70 | . 70 . . Shots 2 | . 2 . . Rammed . | . . . . Targets Rammed . | . . . . Kicked . | . . . . Crushed . | . . . . Highest Temperature 467 | . 17 154 467 Average Temperature 166 | . 10 58 243 Received Heat Transfer 621 | . 102 84 435 Effects 5 | . . . 5 Shutdowns 1 | . . . 1 Energy Bleed 1 | . . . 1 Interference 1 | . . . 1 Damage (major) 2 | . . . 2 Siege Activations . | . . . . Robots Corrupted . | . . . . Combat Hostiles . | . . . . Parts Fried 2 | . 2 . . Impact Corruptions . | . . . . Robots Melted . | . . . . Combat Hostiles . | . . . . Parts Melted . | . . . . Heat Transferred 693 | . 300 74 319 Parts Sabotaged . | . . . . Parts Stolen . | . . . . Parts Stripped . | . . . . Power Chain Reactions 2 | . 2 . . Alert | -11 -10 -9 -9 ------- Run | Yrd Mat Mat Sto Peak Influence 244 | . 244 168 193 Initial 102 | . . 102 70 Average 122 | . 137 139 129 Maximum Alert Level 1 | . 1 . . Low Security (%) 94 | 100 88 100 100 Level 1 5 | . 11 . . Level 2 . | . . . . Level 3 . | . . . . Level 4 . | . . . . Level 5 . | . . . . High Security . | . . . . Max Security . | . . . . Squads Dispatched 4 | . 1 . 3 Investigation 1 | . 1 . . Extermination . | . . . . Reinforcement 1 | . . . 1 Assault 2 | . . . 2 Garrison . | . . . . Intercept . | . . . . Searches Triggered . | . . . . Construction Impeded . | . . . . Haulers Reinforced . | . . . . Active Scanning Responses . | . . . . Cargo Convoy Interrupts . | . . . . Stealth | -11 -10 -9 -9 --------- Run | Yrd Mat Mat Sto Distress Signals 1 | . 1 . . Communications Jammed . | . . . . Distress Signals . | . . . . Times Spotted 27 | . 9 2 16 Peak Tracking Total 10 | . 3 1 10 Tactical Retreats . | . . . . Traps | -11 -10 -9 -9 ------- Run | Yrd Mat Mat Sto Traps Triggered 2 | . 1 . 1 Indirectly . | . . . . Trap Hack Attempts . | . . . . Triggered . | . . . . Disarmed . | . . . . Reprogrammed . | . . . . Reused . | . . . . Traps Extracted . | . . . . Installed . | . . . . Triggered . | . . . . Machines | -11 -10 -9 -9 ---------- Run | Yrd Mat Mat Sto Machines Disabled 1 | . 1 . . Max in Single Turn 1 | . 1 . . Machines Repaired . | . . . . Machines Dismantled . | . . . . Machines Sabotaged . | . . . . Overloaded Fab Kills . | . . . . Hacking | -11 -10 -9 -9 --------- Run | Yrd Mat Mat Sto Machines Accessed 5 | . 3 . 2 Terminals 5 | . 3 . 2 Fabricators . | . . . . Repair Stations . | . . . . Recycling Units . | . . . . Scanalyzers . | . . . . Garrison Access . | . . . . Total Hacks 8 | . 5 . 3 Successful 4 | . 3 . 1 Failed 4 | . 2 . 2 Catastrophic 2 | . 1 . 1 Database Lockouts . | . . . . Manual . | . . . . Terminals 8 | . 5 . 3 Fabricators . | . . . . Repair Stations . | . . . . Recycling Units . | . . . . Scanalyzers . | . . . . Garrison Access . | . . . . Terminal Hacks 4 | . 3 . 1 Record 1 | . 1 . . Open Door 1 | . . . 1 Emergency Access Points 1 | . 1 . . Alert Level 1 | . 1 . . Fabricator Hacks . | . . . . Repair Station Hacks . | . . . . Recycling Unit Hacks . | . . . . Scanalyzer . | . . . . Garrison Access Hacks . | . . . . Unauthorized Hacks . | . . . . Terminals . | . . . . Fabricators . | . . . . Repair Stations . | . . . . Recycling Units . | . . . . Scanalyzers . | . . . . Garrison Access . | . . . . Data Cores Recovered . | . . . . Used . | . . . . Hacking Detections 4 | . 2 . 2 Full Trace Events . | . . . . Feedback Events . | . . . . Feedback Blocked . | . . . . Robot Schematics Acquired . | . . . . Robots Built . | . . . . Authchips . | . . . . Time . | . . . . Total Robot Build Rating . | . . . . Part Schematics Acquired . | . . . . Parts Built . | . . . . Authchips . | . . . . Time . | . . . . Total Part Build Rating . | . . . . Parts Repaired . | . . . . Time . | . . . . Parts Recycled . | . . . . Recycled Matter . | . . . . Retrieved Matter . | . . . . Retrieved Components . | . . . . Parts Scanalyzed . | . . . . Part Schematics Acquired . | . . . . Parts Damaged . | . . . . Bothacking | -11 -10 -9 -9 ------------ Run | Yrd Mat Mat Sto Used RIF Installer . | . . . . Robots Hacked . | . . . . Non-combat . | . . . . Combat . | . . . . Robot Hacks Applied . | . . . . Relay Couplers Released . | . . . . Fabnet Peak Effective % . | . . . . Robots Rewired . | . . . . Allies Hacked . | . . . . Hacks Repelled . | . . . . Allies | -11 -10 -9 -9 -------- Run | Yrd Mat Mat Sto Total Allies 2 | . . . 2 Largest Group 2 | . . . 2 Highest-Rated Group 62 | . . . 62 Highest-Rated Ally 31 | . . . 31 Total Orders . | . . . . Ally Attacks 17 | . . . 17 Total Damage 289 | . . . 289 Kills 2 | . . . 2 Allies Corrupted . | . . . . Allies Melted . | . . . . Intel | -11 -10 -9 -9 ------- Run | Yrd Mat Mat Sto Robot Analysis Total . | . . . . Derelict Logs Recovered . | . . . . Drone Launches 2 | . . . 2 Drone Recoveries . | . . . . Exploration | -11 -10 -9 -9 ------------- Run | Yrd Mat Mat Sto Turns Passed 719 | 75 320 187 137 Spaces Moved 498 | 70 219 130 79 Core 7 | 7 . . . Treads . | . . . . Legs . | . . . . Wheels 491 | 63 219 130 79 Hover . | . . . . Flight . | . . . . Fastest Speed 50 | 50 90 100 100 Average Speed 94 | 89 90 100 100 Slowest Speed 150 | 150 100 100 100 Overloaded Moves . | . . . . Propulsion Burnouts . | . . . . Robots Hopped . | . . . . Cave-ins Triggered . | . . . . Exploration Rate (%) 15 | 4 29 16 14 Regions Visited 3 Branch Regions 1 Pre-discovered Areas . | . . . . Known Exits Taken . | . . . . Unknown Exits Taken 3 | 1 1 1 . Scrap Searched . | . . . . Spaces Dug . | . . . . Terrain Destroyed 11 | . 11 . . Melee . | . . . . Projectile . | . . . . AOE 11 | . 11 . . Terrain Rammed . | . . . . Walls Destroyed . | . . . . Machines Disabled . | . . . . Actions | -11 -10 -9 -9 --------- Run | Yrd Mat Mat Sto Total 668 | 79 301 172 116 Wait 84 | . 53 24 7 Move 495 | 69 218 129 79 Hop . | . . . . Pick Up 10 | 4 3 1 2 Fast Attach 13 | 6 3 3 1 Attach 4 | . . 1 3 Detach 2 | . . 1 1 Swap 7 | . 2 2 3 Drop 11 | . 3 4 4 Fire 39 | . 19 7 13 Melee . | . . . . Ram . | . . . . Kick . | . . . . Crush . | . . . . Escape Stasis 3 | . . . 3 Rewire . | . . . . Trap . | . . . . Miscellaneous . | . . . . Route ------- -11/Scrapyard -10/Materials (discovered 2 exits: *Mat / [*Min]) -9/Materials -9/Storage History --------- Turn | Location | Event 25 | -11/Scrapyard | Discovered new exit (range 16) 76 | -11/Scrapyard | Entered Materials 129 | -10/Materials | Discovered new exit (range 12) 176 | -10/Materials | Discovered new exit (range 16) 317 | -10/Materials | Build established: Mutant 396 | -10/Materials | Entered another Materials area 396 | -9/Materials | Evolved 2 slots: Utility x1, Weapon x1 543 | -9/Materials | Discovered new exit (range 7) 583 | -9/Materials | Entered Storage 602 | -9/Storage | Met a pair of Derelict thieves 716 | -9/Storage | Core integrity fell below 50% 718 | -9/Storage | Core integrity fell below 20% 720 | -9/Storage | Destroyed by L-31 Rogue with Katana Last Messages --------------- 00703_ Beam Rifle destroyed. 00703_ System corrupted by crushing effect (+3). 00704_ Com. Wheel destroyed. 00705_ L-31 Rogue sneak attacks. 00705_ Drone destroyed. 00706_ Overheating: System interference. 00706_ Hvy. Assault Rifle temporarily disabled. 00707_ M-13 Machinist repairs L-31 Rogue. 00707_ Ion Engine destroyed. 00708_ Overheating: Energy bleed (-15). 00709_ Hvy. Assault Rifle destroyed. 00711_ EM Pulse Gun destroyed. 00712_ Lrg. Matter Pod destroyed. 00712_ System corrupted by crushing effect (+3). 00715_ Overheating: Particle Cannon damaged (-33). 00715_ Overheating: Sml. Storage Unit damaged (-17). 00715_ Sml. Storage Unit destroyed. 00715_ Particle Cannon destroyed. Map ----- +----------------------------------------------------+ | ???????????????????????????????????????????? | | ???????????????????????????????????????????? | | ???????????????????????????????????????????? | | ???????????????????????????????????????????? | | ???????????????????????????????????????????? | | ???????????????????????????????????????????? | | ???????????????????????????????????????????? | | ???????????????????????????????????????????? | | ???????????????????????????????????????????? | | ???????????????????????????????????????????? | | ???????????????????????????????????????????? | | ???????????????????????????????????????????? | | ???????????????????????????????????????????? | | ???????????????????????????????????????????? | | ???????????????????????????????????????????? | | ???????????????????????????????????????????? | | ?????????#####?????????????????????????????? | | ?????????#! !#?????????????????????????????? | | ?????????#! !#??????????#??????????????????? | | ?????????# !#????????? #??????????????????? | | ?????????# !!#????????? #??????????????????? | | ?????????## ###??????? #??????????????????? | | ?????????# T#??????? #??????????????????? | | ????????###+###?????? #??????????????????? | | ????????# #######% #??????????????????? | | ????????# % l@g! #??????????????????? | | ???###??# *%ibgg%= #??????????????????? | | ???#"""?# [mmg=g #??????????????????? | | ???#"R"## ###########??????????????????? | | ####" "### ##????????????????????????????? | | # # ##????????????????????????????? | | #""" T#?######?????????????????????? | | #"Y """ #### ! !#?????????????????????? | | #""" """ = #T#= ! #?????????????????????? | | # """ %[ # " #?????????????????????? | | # !! # !#?????????????????????? | | # = # =#[ " ! #?????????????????????? | | ?#### #### =" [# !!#?????????????????????? | | ????###??# !#########?????????????????????? | | ?????????# #?????????????????????????????? | | ?????????# #?????????????????????????????? | | ?????????# #?????????????????????????????? | | ????###### #?????????????????????????????? | | ????# ## #?????????????????????????????? | | ????# # #?????????????????????????????? | | ????# # #?????????????????????????????? | | ????# + #?????????????????????????????? | | ????# T## #?????????????????????????????? | | ????###### #?????????????????????????????? | | ?????????#####?????????????????????????????? | +----------------------------------------------------+ Best States ------------- Heat Dissipation 35 Energy Generation 10 Energy Capacity 250 Matter Stores 434 Matter Capacity 450 Sight Range 16 Terrain Scan Density 10 Evasion (%) 42 Targeting Accuracy 5 Item Schematics ----------------- None Robot Schematics ------------------ None Fabricated ------------ Nothing Alien Tech Used ----------------- None Achievements -------------- None Challenges ------------ None Game ------ Seed ProcessingNuclearExtractor Manual? 0 Play Time 00:15:23 Cumulative 9.0 hours Start 2024.04.24 @ 01:54:56 End 2024.04.24 @ 21:24:19 Sessions 3 Manual Loads 0 Difficulty Rogue Special Mode None Game No. 14 Rogue 14 Adventurer 0 Explorer 0 Win Type - Total 0 Types 0/0/0/0/0/0/0/0/0 Lore% 14 Gallery% 14 Achievement% 10 Wizard Run 0 Options --------- Layout 1 ASCII 0 Keyboard 1 Movement Arrows Keybinds 0 Fullscreen 2 Font 24/Smallcaps Map View 50x35 Zoom Use 0% Tactical HUD 1 Map Filters NONE Filters NONE Steam 1 RUN: 5a1de7e3-83cb-4b80-b704-8ce4532d562e